bitfinex-derivatives/quotes_ETHF0:USTF0_20241207
["timestamp","ask_amount","ask_price","bid_price","bid_amount"]
[1733590372357,0.17472,4002.6,4002.5,0.66602]
[1733590372657,0.17472,4002.6,4002.5,0.4913]
[1733590373762,4.09797238,4002.6,4002.5,0.4913]
[1733590374258,4.09604771,4002.6,4002.5,0.4913]
[1733590374464,4.09513197,4002.6,4002.5,0.4913]
[1733590374964,0.17472,4002.4,4002.3,0.4938]
[1733590375159,7.30290843,4002.4,4002.3,0.4938]
[1733590375463,3.38252,4002.4,4002.3,0.4938]
[1733590377056,3.38252,4002.4,4002.3,0.66853]
[1733590377460,6.32119056,4002.4,4002.3,0.66853]
[1733590377752,0.17473,4002.3,4002.2,0.17473]
[1733590377956,5.07142497,4002.3,4002.2,0.17473]
[1733590378166,5.07138558,4002.3,4002.2,0.17473]
[1733590378762,0.17473,4002.3,4002.2,0.17473]
[1733590378961,8.10445558,4002.4,4002.0,0.4864]
[1733590379263,8.27918558,4002.4,4002.3,0.17473]
[1733590379458,3.38253,4002.4,4002.3,0.17473]
[1733590379661,8.27918558,4002.4,4002.3,0.17473]
[1733590380566,4.28160942,4002.4,4002.3,0.17473]
[1733590380957,9.178265,4002.4,4002.3,0.17473]
[1733590382762,4.28160942,4002.4,4002.3,0.17473]
[1733590383770,9.178265,4002.4,4002.3,0.17473]
[1733590384066,4.28160942,4002.4,4002.3,0.17473]
[1733590384270,4.10687942,4002.4,4002.3,0.17473]
[1733590384461,4.28159942,4002.4,4002.3,0.17473]
[1733590385063,4.10687942,4002.4,4002.3,0.17473]
[1733590385660,4.28159942,4002.4,4002.3,0.17473]
[1733590388470,4.10687942,4002.4,4002.3,0.17473]
[1733590389063,4.28159942,4002.4,4002.3,0.17473]
[1733590389266,4.10687942,4002.4,4002.3,0.17473]
[1733590391985,3.2078,4002.4,4002.3,0.17473]
[1733590392180,4.10687942,4002.4,4002.3,0.17473]
[1733590392580,8.02214899,4002.4,4002.3,0.17473]
[1733590397084,4.10687942,4002.4,4002.3,0.17473]
[1733590398279,3.2078,4002.4,4002.3,0.17473]
[1733590398480,3.9152973,4002.4,4002.2,0.43684]
[1733590398681,2.93672852,4002.3,4002.2,0.17473]
[1733590399384,5.795735,4002.7,4002.0,0.4864]
[1733590399688,0.89907942,4002.4,4002.3,0.17473]
[1733590404197,0.89907942,4002.4,4002.0,0.4864]
[1733590404396,0.89907942,4002.1,4002.0,0.4864]
[1733590405388,3.83666953,4002.1,4002.0,0.4864]
[1733590405594,0.89907942,4002.1,4002.0,0.4864]
[1733590405996,1.07381942,4002.1,4002.0,0.4864]
[1733590406298,1.61701942,4002.1,4002.0,0.4864]
[1733590407890,1.61701942,4002.1,4002.0,0.66114]
[1733590408097,1.61701942,4002.1,4002.0,0.4864]
[1733590408596,0.17475,4001.9,4001.8,0.17475]
[1733590409099,0.17475,4001.9,4001.4,0.5202]
[1733590409100,0.17476,4001.5,4001.4,0.5202]
[1733590409292,1.07383942,4001.5,4001.4,0.5202]
[1733590409497,0.17477,4001.3,4001.2,0.17477]
[1733590409800,1.07384942,4001.3,4001.2,0.17477]
[1733590410186,1.07384942,4001.3,4001.1,1.0174]
[1733590410390,0.5045,4001.2,4001.1,1.19218]
[1733590410998,0.67928,4001.2,4001.1,1.19218]
[1733590412601,0.5045,4001.2,4000.7,3.2078]
[1733590412909,1.07386942,4000.8,4000.7,0.1748]
[1733590413193,3.84219973,4000.8,4000.7,0.1748]
[1733590413394,0.1748,4000.7,4000.6,1.0609]
[1733590413904,0.716,4000.7,4000.6,1.0609]
[1733590414289,3.65912031,4000.7,4000.6,1.0609]
[1733590414498,0.716,4000.7,4000.6,1.0609]
[1733590415190,0.716,4000.7,4000.4,0.4969]
[1733590415191,3.48432031,4000.7,4000.4,0.4969]
[1733590415396,0.17481,4000.4,4000.2,1.17332]
[1733590415901,0.89907942,4000.5,4000.1,0.17482]
[1733590415902,0.17482,4000.3,4000.1,0.17482]
[1733590416100,1.07389942,4000.2,4000.0,0.5205]
[1733590416409,0.89907942,4000.2,4000.0,0.5205]
[1733590416704,2.45476719,4000.1,4000.0,0.69533]
[1733590416896,2.45476719,4000.1,4000.0,0.5205]
[1733590417505,2.45476719,4000.1,4000.0,0.17483]
[1733590417903,5.39377613,4000.1,4000.0,0.17483]
[1733590418099,2.45476719,4000.1,4000.0,0.17483]
[1733590418701,5.39286512,4000.1,4000.0,0.17483]
[1733590419198,2.45476719,4000.1,4000.0,0.17483]
[1733590423704,2.45476719,4000.1,3999.7,3.2078]
[1733590423900,0.4978,4000.0,3999.8,0.17483]
[1733590424404,0.4978,4000.0,3999.7,3.2078]
[1733590424599,0.67263,4000.0,3999.8,0.17484]
[1733590424904,0.4978,4000.0,3999.8,0.17484]
[1733590425207,0.4978,4000.0,3999.8,0.17482]
[1733590425404,0.9923,4000.0,3999.3,3.2078]
[1733590425610,0.4978,4000.0,3999.9,0.17482]
[1733590426102,2.45476719,4000.1,4000.0,0.17481]
[1733590426298,3.2078,4000.3,4000.2,0.1748]
[1733590426497,0.5304,4000.6,3999.9,0.43705]
[1733590426498,0.5352,4000.6,3999.9,0.43705]
[1733590426703,0.5352,4000.6,4000.5,0.17479]
[1733590427004,3.2078,4000.9,4000.8,0.17478]
[1733590427199,1.95026719,4001.3,4000.5,0.5097]
[1733590427502,1.95026719,4001.3,4001.1,0.17476]
[1733590428106,0.24996313,4001.2,4001.1,0.17476]
[1733590428505,1.95026719,4001.3,4000.6,1.0501]
[1733590428707,1.95026719,4001.3,4001.2,0.17476]
[1733590429713,5.8592336,4001.3,4001.2,0.17476]
[1733590430117,1.95026719,4001.3,4001.2,0.17476]
[1733590430310,4.88185838,4001.3,4001.2,0.17476]
[1733590430512,2.93158965,4001.3,4001.2,3.38256]
[1733590430710,2.93158965,4001.4,4001.3,0.17476]
[1733590431215,2.93158965,4001.5,4001.4,0.17475]
[1733590431514,5.8592336,4001.7,4001.6,0.17474]
[1733590434612,1.95026719,4001.7,4001.6,0.17474]
[1733590434815,5.85962902,4001.7,4001.6,0.17474]
[1733590435018,1.95026719,4001.7,4001.6,0.17474]
[1733590435211,1.95026719,4001.7,4000.7,3.8708]
[1733590435417,2.93200913,4001.3,4000.8,1.0379]
[1733590435716,2.93200913,4001.2,4000.8,1.0379]
[1733590435912,2.93200913,4001.2,4001.1,0.17476]
[1733590436112,3.90934551,4001.3,4001.2,0.17476]
[1733590436315,0.17477,4001.0,4000.8,1.21268]
[1733590436513,4.08503346,4001.0,4000.8,0.17478]
[1733590436720,4.08503346,4000.9,4000.8,0.17478]
[1733590436917,40.8,4000.9,4000.4,1.0379]
[1733590437213,3.91073733,4000.7,4000.6,0.17478]
[1733590437807,3.2078,4000.8,4000.7,0.17478]
[1733590438717,3.38258,4000.8,4000.7,0.17478]
[1733590438918,3.38258,4000.8,4000.4,1.0379]
[1733590438919,5.15806719,4000.8,4000.4,0.5207]
[1733590439118,5.15806719,4000.8,3999.9,0.93485]
[1733590439318,5.15806719,4000.8,4000.5,0.17479]
[1733590439319,0.17479,4000.6,4000.5,0.17479]
[1733590439513,8.09116783,4000.8,4000.0,0.513]
[1733590439710,0.5161,4000.5,4000.4,0.17479]
[1733590440514,0.69089,4000.5,4000.4,0.17479]
[1733590440919,0.1748,4000.3,4000.2,0.1748]
[1733590441223,3.3826,4000.3,4000.2,0.1748]
[1733590441624,3.2078,4000.3,4000.0,0.513]
[1733590441826,0.17481,4000.2,4000.1,0.17481]
[1733590442018,3.2078,4000.3,4000.2,0.1748]
[1733590442517,3.3826,4000.3,4000.2,0.1748]
[1733590442716,3.2078,4000.3,4000.2,0.1748]
[1733590444021,3.2078,4000.3,4000.0,0.68781]
[1733590444221,3.2078,4000.3,3999.4,3.8708]
[1733590444423,3.2078,4000.3,3999.5,0.5172]
[1733590444424,6.14090064,4000.3,3999.5,0.5172]
[1733590444630,1.95026719,4000.0,3999.5,0.5172]
[1733590444829,0.17483,3999.6,3999.5,0.69203]
[1733590445321,0.17483,3999.7,3999.6,0.17483]
[1733590445827,0.5268,3999.9,3999.7,0.17482]
[1733590445828,0.17482,3999.8,3999.7,0.17482]
[1733590446123,4.43753733,3999.9,3999.5,0.5172]
[1733590446328,2.9346848,3999.7,3999.6,0.17483]
[1733590446625,4.61235733,3999.9,3999.5,0.5172]
[1733590446926,2.93506567,3999.6,3999.5,0.69203]
[1733590447323,2.93506567,3999.7,3999.6,0.17483]
[1733590447627,4.61235733,3999.9,3999.7,0.17483]
[1733590448134,4.43753733,3999.9,3999.5,1.0235]
[1733590448328,2.93542291,3999.7,3999.6,0.17483]
[1733590448523,2.93542291,3999.7,3999.5,1.0235]
[1733590448524,3.91073733,3999.8,3999.7,0.17483]
[1733590448731,4.43753733,3999.9,3999.8,0.17482]
[1733590449024,0.70162,3999.9,3999.8,0.17482]
[1733590449224,0.5268,3999.9,3999.5,1.0235]
[1733590449426,3.91455646,3999.8,3999.7,0.17482]
[1733590449631,5.42345558,3999.9,3999.5,1.0235]
[1733590449827,3.91592636,3999.7,3999.6,0.17483]
[1733590450331,0.70162,3999.9,3999.7,0.17483]
[1733590450528,3.91562504,3999.8,3999.7,0.17483]
[1733590450825,0.70162,3999.9,3999.8,0.17482]
[1733590450826,5.42345558,3999.9,3999.8,0.17482]
[1733590451125,5.59827558,3999.9,3999.6,0.17483]
[1733590451331,5.59827558,3999.9,3999.8,0.17482]
[1733590451532,5.42345558,3999.9,3999.8,0.17482]
[1733590451830,0.5268,3999.9,3999.8,0.17482]
[1733590452524,5.86676152,4000.0,3999.9,0.17482]
[1733590452725,1.95026719,4000.0,3999.9,0.17482]
[1733590453627,3.2078,4000.3,4000.2,0.17481]
[1733590454723,1.95026719,4000.4,4000.3,0.1748]
[1733590455526,2.12506719,4000.4,4000.3,0.1748]
[1733590455830,1.95026719,4000.4,4000.3,0.1748]
[1733590457426,6.1454976,4000.7,4000.6,0.17479]
[1733590457628,3.2078,4000.7,4000.6,0.17479]
[1733590458738,5.41986479,4000.8,4000.7,0.17478]
[1733590458931,1.95026719,4000.8,4000.7,0.17478]
[1733590460330,5.86676152,4000.8,4000.7,0.17478]
[1733590460531,1.95026719,4000.8,4000.7,0.17478]
[1733590461038,5.86676152,4000.8,4000.7,0.17478]
[1733590461234,6.04154152,4000.8,4000.7,0.17478]
[1733590461442,5.86676152,4000.8,4000.7,0.17478]
[1733590461740,0.17479,4000.6,4000.5,0.17479]
[1733590462328,0.69309,4000.6,4000.5,0.17479]
[1733590462533,0.5183,4000.6,4000.5,0.17479]
[1733590462933,0.69309,4000.6,4000.5,0.17479]
[1733590463330,0.5183,4000.6,4000.5,0.17479]
[1733590464337,5.87035334,4000.8,4000.1,1.6038]
[1733590464632,1.95026719,4000.8,4000.7,0.17478]
[1733590465031,4.8902277,4000.8,4000.7,0.17478]
[1733590465633,1.95026719,4000.8,4000.7,0.17478]
[1733590466543,2.12504719,4000.8,4000.7,0.17478]
[1733590466839,5.87035334,4000.8,4000.7,0.17478]
[1733590467436,0.1748,4000.5,4000.4,0.17479]
[1733590468042,0.7129,4000.5,4000.4,0.17479]
[1733590468543,0.71289,4000.5,4000.4,0.17479]
[1733590468742,0.5381,4000.5,4000.4,0.17479]
[1733590469745,0.71289,4000.5,4000.4,0.17479]
[1733590470039,0.5381,4000.5,4000.4,0.17479]
[1733590470234,5.88707805,4000.7,4000.6,0.17479]
[1733590470436,0.17478,4000.7,4000.6,0.17479]
[1733590470739,6.06185805,4000.7,4000.6,0.17479]
[1733590471444,0.17478,4000.7,4000.6,0.17479]
[1733590471740,0.17479,4000.7,4000.6,0.17479]
[1733590472342,6.06186805,4000.7,4000.6,0.17479]
[1733590472738,0.17479,4000.7,4000.6,0.17479]
[1733590472933,6.06186805,4000.7,4000.6,0.17479]
[1733590474339,6.06186805,4000.7,4000.1,2.04083]
[1733590474340,5.88707805,4000.7,4000.1,1.6038]
[1733590474538,4.90106881,4000.2,4000.1,1.77861]
[1733590474741,4.90112372,4000.2,4000.1,1.77861]
[1733590474938,4.90110759,4000.2,4000.1,1.77861]
[1733590475142,0.89985551,4000.4,4000.3,0.1748]
[1733590477739,0.89985551,4000.4,4000.2,3.2078]
[1733590477740,2.94060582,4000.6,4000.5,0.17479]
[1733590479136,4.90110759,4001.0,4000.2,3.2078]
[1733590479137,2.94060582,4000.7,4000.6,0.17479]
[1733590479347,2.94060582,4000.9,4000.7,0.56479]
[1733590479546,3.84258143,4000.9,4000.8,0.97928]
[1733590480453,2.94272592,4000.9,4000.8,0.97928]
[1733590481335,5.8009631,4001.4,4000.8,0.8045]
[1733590481336,2.94272592,4001.1,4000.8,0.8045]
[1733590481539,2.94272592,4001.1,4001.0,0.17477]
[1733590481746,2.94272592,4001.2,4000.8,0.8045]
[1733590481942,2.94272592,4001.2,4001.1,0.17477]
[1733590482347,2.94272592,4001.2,4000.8,1.24146]
[1733590482348,2.94272592,4001.3,4001.2,0.17476]
[1733590483145,2.94272592,4001.4,4001.3,0.17476]
[1733590484141,0.17475,4001.5,4000.9,0.43695]
[1733590484345,2.94220231,4001.3,4001.2,0.17476]
[1733590484550,4.31200776,4001.5,4000.8,0.8045]
[1733590484745,2.94187076,4001.2,4000.8,0.8045]
[1733590484946,2.94187076,4001.2,4001.1,0.17477]
[1733590485153,3.11663076,4001.3,4001.2,0.17477]
[1733590485345,0.17476,4001.3,4001.2,0.17477]
[1733590486251,2.94156273,4001.3,4001.2,0.17477]
[1733590486452,3.11632273,4001.3,4001.2,0.17477]
[1733590486951,3.11610141,4001.3,4001.2,0.17477]
[1733590489049,2.94134141,4001.3,4001.2,0.17477]
[1733590490057,0.17476,4001.3,4001.2,0.17477]
[1733590490248,6.06183805,4001.3,4001.2,0.17477]
[1733590490449,0.17476,4001.3,4001.2,0.17477]
[1733590490652,6.06183805,4001.3,4001.2,0.17477]
[1733590494357,5.88707805,4001.3,4001.2,0.17477]
[1733590494549,6.06183805,4001.4,4000.8,0.8045]
[1733590494755,4.90224343,4000.9,4000.8,0.97928]
[1733590495655,4.90224343,4001.0,4000.8,0.8045]
[1733590495855,5.88707805,4001.4,4000.8,0.8045]
[1733590495856,4.90224343,4000.9,4000.8,0.97929]
[1733590497455,6.06184805,4001.3,4001.2,0.17477]
[1733590497654,0.17477,4001.1,4001.0,0.17477]
[1733590497854,0.17478,4000.9,4000.8,0.8045]
[1733590498050,6.06185805,4000.9,4000.8,0.8045]
[1733590498252,4.0992181,4000.9,4000.8,0.8045]
[1733590498455,4.0992181,4000.9,4000.8,0.3901]
[1733590499061,4.0992181,4000.9,4000.8,0.56488]
[1733590499257,4.0992181,4000.9,4000.8,0.3901]
[1733590499960,4.0992181,4000.9,4000.8,0.56488]
[1733590500150,0.17478,4000.9,4000.8,0.56488]
[1733590500758,4.10019585,4000.9,4000.8,0.56488]
[1733590501058,3.92541585,4000.9,4000.8,0.56488]
[1733590501258,4.10029616,4000.9,4000.8,0.56488]
[1733590501666,0.17478,4000.9,4000.8,0.56488]
[1733590502360,4.10071176,4000.9,4000.8,0.56488]
[1733590502664,3.92593176,4000.9,4000.8,0.56488]
[1733590502859,4.10071176,4000.9,4000.8,0.56488]
[1733590504964,4.10111125,4000.9,4000.8,0.56488]
[1733590505269,6.78668539,4001.0,4000.8,0.56488]
[1733590505461,6.06185805,4000.9,4000.8,0.56488]
[1733590505970,5.88707805,4000.9,4000.8,0.56488]
[1733590506160,6.06186805,4000.9,4000.8,0.56488]
[1733590506463,0.17479,4000.9,4000.8,0.56488]
[1733590507569,6.06486506,4000.9,4000.8,0.56488]
[1733590507764,0.89960734,4001.0,4000.6,0.1748]
[1733590507765,7.76783139,4001.0,4000.6,0.1748]
[1733590508068,0.1748,4000.6,4000.5,0.5726]
[1733590508268,6.06498581,4000.6,4000.5,0.5726]
[1733590508471,6.46058581,4000.6,4000.5,0.5726]
[1733590508769,0.5704,4000.6,4000.5,0.3978]
[1733590509066,0.5704,4000.6,4000.4,0.17481]
[1733590509067,0.1748,4000.5,4000.4,0.17481]
[1733590509265,6.06575649,4000.5,4000.4,0.17481]
[1733590509866,0.7975,4000.6,4000.3,0.3978]
[1733590509867,0.17481,4000.4,4000.3,0.3978]
[1733590510071,0.17483,4000.0,3999.9,0.17482]
[1733590510265,0.89960734,4000.0,3999.8,0.3978]
[1733590510468,0.3956,3999.9,3999.1,3.2078]
[1733590510767,0.3956,3999.9,3999.4,0.17485]
[1733590510768,1.07445734,3999.5,3999.4,0.17485]
[1733590511070,0.89960734,3999.5,3999.4,0.17485]
[1733590511374,1.07445734,3999.5,3999.4,0.17485]
[1733590511670,0.89960734,3999.5,3999.4,0.17485]
[1733590512573,0.89960734,3999.5,3999.4,0.58425]
[1733590514069,0.89960734,3999.5,3999.4,0.99905]
[1733590514567,0.89960734,3999.5,3999.3,0.4081]
[1733590514773,0.17487,3998.9,3998.8,0.97418]
[1733590515075,0.89960734,3998.9,3998.8,0.7993]
[1733590515277,0.89960734,3998.9,3998.8,0.97418]
[1733590515570,3.92408095,3999.5,3998.8,0.97418]
[1733590515571,2.94255801,3999.5,3998.8,4.90670734]
[1733590515773,2.94255801,3999.6,3999.5,0.17485]
[1733590515972,0.17484,3999.8,3999.5,0.17485]
[1733590516175,2.94255801,3999.9,3999.6,0.3969]
[1733590516374,1.07444734,3999.7,3999.6,0.3969]
[1733590516873,1.07444734,3999.7,3998.8,4.90670734]
[1733590516874,2.46221468,3999.7,3998.8,0.7993]
[1733590517071,0.17487,3999.0,3998.9,0.4134]
[1733590518076,1.07447734,3999.0,3998.9,0.4134]
[1733590518973,1.07447734,3999.0,3998.9,0.58827]
[1733590520269,1.07447734,3999.0,3998.9,0.4134]
[1733590520671,1.07447734,3999.0,3998.9,0.58827]
[1733590520870,1.45277734,3999.0,3998.9,0.58827]
[1733590521279,4.38864166,3999.0,3998.9,0.58827]
[1733590521779,4.38864166,3999.0,3998.9,0.4134]
[1733590522076,1.45277734,3999.0,3998.9,0.4134]
[1733590522284,4.3885588,3999.0,3998.9,0.4134]
[1733590522967,1.45277734,3999.0,3998.9,0.4134]
[1733590523374,4.3869884,3999.0,3998.9,0.4134]
[1733590523573,4.2121184,3999.0,3998.9,0.4134]
[1733590523781,0.89960734,3999.0,3998.9,0.58827]
[1733590524074,2.93421106,3999.4,3999.3,0.17486]
[1733590524274,3.8338184,3999.5,3999.4,0.17485]
[1733590524478,0.89960734,3999.5,3999.4,0.17485]
[1733590525176,3.8338184,3999.5,3999.4,0.17485]
[1733590525579,0.89960734,3999.5,3999.4,0.17485]
[1733590526584,2.93421106,3999.9,3999.8,0.17483]
[1733590527380,3.10904106,3999.9,3999.8,0.17483]
[1733590527682,0.17483,3999.9,3999.8,0.17483]
[1733590528281,0.17483,4000.0,3999.9,0.17483]
[1733590528680,5.33288953,4000.1,3999.9,0.17483]
[1733590528876,5.33288953,4000.1,4000.0,0.17482]
[1733590529478,5.15806953,4000.1,4000.0,0.17482]
[1733590529675,2.93421106,4000.4,3999.6,3.2078]
[1733590529888,8.09228059,4000.5,4000.4,0.17481]
[1733590530183,5.15806953,4000.5,4000.4,0.17481]
[1733590533283,3.2078,4000.5,4000.4,0.17481]
[1733590534883,3.2078,4000.5,4000.1,2.531]
[1733590535188,2.32526953,4000.4,4000.1,2.531]
[1733590535384,2.32526953,4000.4,4000.2,0.17481]
[1733590535583,40.8,4000.3,4000.2,0.17481]
[1733590536189,2.50007953,4000.4,4000.3,0.17481]
[1733590538087,8.39133916,4000.4,4000.3,0.17481]
[1733590538891,8.21652916,4000.4,3999.7,1.1874]
[1733590539097,4.89320975,3999.8,3999.7,1.36224]
[1733590539394,6.06607963,4000.2,3999.7,1.1874]
[1733590539590,0.17482,4000.1,4000.0,0.17482]
[1733590540387,6.06607963,4000.1,4000.0,0.17482]
[1733590540788,0.17482,4000.1,4000.0,0.17482]
[1733590540988,6.06607963,4000.2,4000.1,0.17482]
[1733590541283,0.17482,4000.2,4000.1,0.17482]
[1733590541591,0.17482,4000.1,4000.0,0.17482]
[1733590541797,6.04962285,4000.1,4000.0,0.17482]
[1733590542397,0.17482,4000.1,4000.0,0.17482]
[1733590543592,3.11286686,4000.2,4000.1,0.17482]
[1733590547093,0.17482,4000.1,4000.0,0.17482]
[1733590547300,0.17482,4000.1,3999.7,1.1874]
[1733590547301,2.93804686,4000.1,3999.7,1.1874]
[1733590547494,0.17483,3999.9,3999.8,0.17483]
[1733590547995,2.93977157,3999.9,3999.0,0.43718]
[1733590548200,1.95026953,4000.0,3999.7,0.17483]
[1733590548201,3.11461157,3999.8,3999.7,0.17483]
[1733590548400,3.49501157,3999.8,3999.7,0.17483]
[1733590548704,4.39523555,3999.8,3999.7,0.17483]
[1733590549495,0.17484,3999.7,3999.6,0.17484]
[1733590549695,3.11577363,3999.7,3999.6,0.17484]
[1733590550599,0.17484,3999.7,3999.6,0.17484]
[1733590552199,4.09223582,3999.7,3999.6,0.17484]
[1733590553097,0.17484,3999.7,3999.6,0.17484]
[1733590553293,4.09223582,3999.7,3999.6,0.17484]
[1733590556597,0.17485,3999.4,3999.3,0.92925]
[1733590556808,1.07507398,3999.4,3999.3,0.92925]
[1733590557901,1.07507398,3999.4,3999.3,0.7544]
[1733590558206,1.07507398,3999.4,3999.3,0.92926]
[1733590558910,1.07507398,3999.4,3999.3,0.7544]
[1733590559203,6.77631771,3999.4,3998.3,3.8708]
[1733590559408,0.17487,3999.0,3998.9,0.55677]
[1733590559605,1.07509398,3999.0,3998.9,0.3819]
[1733590560004,6.95118771,3999.0,3998.9,0.3819]
[1733590561802,6.95118771,3999.0,3998.6,0.3895]
[1733590561803,6.77631771,3999.0,3998.6,0.3895]
[1733590562003,1.07510398,3998.7,3998.6,0.3895]
[1733590562810,1.07510398,3998.7,3998.3,3.2078]
[1733590562811,0.1749,3998.4,3998.3,3.2078]
[1733590563009,0.1749,3998.4,3997.9,0.17491]
[1733590563010,0.17492,3998.0,3997.9,0.17491]
[1733590563305,0.90022398,3998.0,3997.6,1.2091]
[1733590563503,0.17491,3998.1,3997.9,0.17492]
[1733590564107,4.90205878,3998.0,3997.6,1.2091]
[1733590564308,3.92166179,3997.8,3997.7,0.17493]
[1733590564607,3.92179578,3997.8,3997.7,0.17493]
[1733590565307,0.90022398,3997.9,3997.8,0.17492]
[1733590566209,0.90022398,3997.9,3997.6,1.2091]
[1733590566210,2.94038984,3998.6,3997.7,0.90022398]
[1733590566513,4.10802398,3998.4,3998.3,0.1749]
[1733590567410,0.663,3998.6,3997.7,0.90022398]
[1733590567601,0.3913,3998.7,3997.7,0.90022398]
[1733590567602,0.90022398,3998.7,3998.1,0.43727]
[1733590567808,0.90022398,3998.7,3998.6,0.17489]
[1733590568002,3.2078,3998.8,3998.2,0.3975]
[1733590568207,3.2078,3998.8,3998.7,0.17488]
[1733590569706,0.90022398,3999.0,3998.5,3.2078]
[1733590569907,0.90022398,3999.0,3998.9,0.17487]
[1733590570606,3.2078,3999.2,3998.5,3.2078]
[1733590570910,3.2078,3999.2,3999.1,0.17486]
[1733590573509,1.95109375,3999.3,3999.2,0.17486]
[1733590574507,2.12595375,3999.3,3999.2,0.17486]
[1733590574713,1.95109375,3999.3,3998.8,0.374]
[1733590575016,1.95109375,3999.3,3999.2,0.17486]
[1733590575309,1.056,3999.4,3999.3,0.17486]
[1733590576219,0.663,3999.4,3999.3,0.17486]
[1733590576718,3.2078,3999.6,3999.5,0.17485]
[1733590577819,3.38264,3999.6,3999.5,0.17485]
[1733590578426,3.2078,3999.6,3999.5,0.17485]
[1733590579522,3.2078,3999.6,3999.0,0.799]
[1733590579713,0.17485,3999.4,3999.3,0.17485]
[1733590579910,3.2078,3999.6,3999.0,0.799]
[1733590580217,3.38264,3999.6,3999.5,0.17485]
[1733590580613,0.17485,3999.4,3999.3,0.17485]
[1733590582720,5.87609373,3999.5,3999.0,0.799]
[1733590582917,3.2078,3999.6,3999.1,0.17486]
[1733590582918,0.17486,3999.2,3999.1,0.17486]
[1733590583117,2.36279375,3999.3,3999.2,0.17486]
[1733590583118,2.53765375,3999.3,3999.2,0.17486]
[1733590583816,2.36279375,3999.3,3999.2,0.17486]
[1733590584016,0.4117,3999.3,3999.2,0.17486]
[1733590584327,5.87609373,3999.5,3999.4,0.17485]
[1733590584516,6.05094373,3999.5,3999.4,0.17485]
[1733590585122,5.87609373,3999.5,3999.0,0.799]
[1733590585321,4.90198018,3999.1,3999.0,0.97387]
[1733590585517,4.27908018,3999.1,3999.0,0.97387]
[1733590586023,9.08389373,3999.6,3999.5,0.17485]
[1733590586926,9.25873373,3999.6,3999.5,0.17485]
[1733590587119,9.08389373,3999.6,3999.5,0.17485]
[1733590587320,9.09124942,3999.6,3999.5,0.17485]
[1733590587518,3.2078,3999.6,3999.5,0.17485]
[1733590588126,3.38264,3999.6,3999.5,0.17485]
[1733590588523,0.17485,3999.5,3999.4,0.17485]
[1733590590730,1.07517162,3999.5,3999.4,0.17485]
[1733590592827,0.90032162,3999.5,3999.0,0.799]
[1733590593125,3.11814604,3999.1,3999.0,0.97387]
[1733590593331,0.17486,3999.1,3999.0,0.97387]
[1733590593522,3.92438139,3999.3,3999.1,0.17486]
[1733590593523,0.17486,3999.2,3999.1,0.17486]
[1733590594330,4.09924139,3999.2,3999.1,0.17486]
[1733590594629,0.17486,3999.2,3999.1,0.17486]
[1733590594825,3.92438139,3999.3,3999.0,0.3963]
[1733590595024,0.17486,3999.1,3999.0,0.57116]
[1733590595423,4.09924139,3999.1,3999.0,0.57116]
[1733590595823,0.17486,3999.1,3999.0,0.3963]
[1733590596319,10.07602405,3999.1,3998.5,3.2078]
[1733590596526,0.17488,3998.6,3998.5,3.2078]
[1733590596827,6.06377345,3998.6,3998.5,3.2078]
[1733590597024,6.45287345,3998.6,3998.5,3.2078]
[1733590597831,0.56398,3998.6,3998.5,3.2078]
[1733590598027,1.28942162,3998.6,3998.3,0.17489]
[1733590598334,6.06316872,3998.4,3998.3,0.17489]
[1733590599526,5.88827872,3998.4,3997.5,4.80304]
[1733590599829,0.17491,3998.2,3998.1,0.1749]
[1733590600729,0.90032162,3998.3,3997.6,0.43733]
[1733590600927,6.86822405,3998.4,3997.8,0.90032162]
[1733590600928,5.88845751,3998.1,3997.8,0.90032162]
[1733590601133,5.88845751,3998.2,3998.1,0.17491]
[1733590601327,5.88845751,3998.3,3998.2,0.1749]
[1733590602734,5.88845751,3998.5,3998.4,0.17489]
[1733590602934,0.90032162,3998.6,3998.5,0.17489]
[1733590603635,3.11937778,3998.8,3998.7,0.17488]
[1733590604732,2.94449778,3998.9,3998.4,0.90032162]
[1733590604933,2.94449778,3999.0,3998.9,0.17487]
[1733590605434,2.94449778,3999.0,3998.4,4.54536162]
[1733590605435,3.8448194,3999.1,3999.0,0.17487]
[1733590606138,3.84464357,3999.1,3999.0,0.17487]
[1733590606338,0.90032162,3999.1,3999.0,0.17487]
[1733590606635,3.84459495,3999.1,3999.0,0.17487]
[1733590606835,4.01945495,3999.1,3999.0,0.17487]
[1733590607037,1.07518162,3999.1,3999.0,0.17487]
[1733590607428,0.90032162,3999.1,3998.4,3.64504]
[1733590607629,0.90032162,3998.8,3998.7,0.17488]
[1733590608034,1.28212162,3998.8,3998.7,0.17488]
[1733590608437,1.45700162,3998.8,3998.7,0.17488]
[1733590608630,0.17488,3998.7,3998.6,0.17488]
[1733590610236,4.22615219,3998.8,3998.4,3.2078]
[1733590610436,0.17489,3998.6,3998.5,0.17489]
[1733590612039,6.06334751,3998.6,3998.5,0.17489]
[1733590615150,5.88845751,3998.6,3998.5,0.17489]
[1733590615447,5.88845751,3998.7,3998.6,0.17488]
[1733590615643,7.34545913,3998.8,3998.3,0.3855]
[1733590615842,7.34545913,3998.8,3998.7,0.17488]
[1733590616744,7.17391547,3998.8,3998.7,0.17488]
[1733590616947,7.34879547,3998.8,3998.7,0.17488]
[1733590617150,1.28212162,3998.8,3998.7,0.17488]
[1733590617451,1.45700162,3998.8,3998.7,0.17488]
[1733590617650,7.34844835,3998.8,3998.7,0.17488]
[1733590618051,1.45700162,3998.8,3998.7,0.17488]
[1733590618744,5.38473908,3998.8,3998.7,0.17488]
[1733590619251,0.55668,3998.8,3998.7,0.17488]
[1733590620249,4.48509948,3998.8,3998.7,0.17488]
[1733590620551,0.55668,3998.8,3998.7,0.17488]
[1733590621054,4.48506283,3998.8,3998.7,0.17488]
[1733590621251,0.55668,3998.8,3998.7,0.17488]
[1733590622954,0.3818,3998.8,3998.7,0.17488]
[1733590623359,0.55668,3998.8,3998.7,0.17488]